bitfinex/quotes_SOLUSD_20250823
["timestamp","ask_amount","ask_price","bid_price","bid_amount"]
[1755983586064,0.06,204.23,204.22,0.73]
[1755983593461,0.06,204.23,204.22,19.22227406]
[1755983595358,0.06,204.23,204.22,14.32559401]
[1755983596181,0.06,204.23,204.22,19.22227406]
[1755983612658,0.06,204.23,204.22,56.62227406]
[1755983613880,0.06,204.23,204.22,19.22227406]
[1755983614082,0.06,204.23,204.22,56.62227406]
[1755983614486,0.06,204.23,204.22,19.22227406]
[1755983614681,0.06,204.23,204.22,56.62227406]
[1755983615490,0.06,204.23,204.22,19.22227406]
[1755983615658,0.06,204.23,204.22,56.62227406]
[1755983616486,0.06,204.23,204.22,19.22227406]
[1755983616681,0.06,204.23,204.22,56.62227406]
[1755983617484,0.06,204.23,204.22,19.22227406]
[1755983617787,0.06,204.23,204.22,56.62227406]
[1755983618485,0.06,204.23,204.22,19.22227406]
[1755983618681,0.06,204.23,204.22,56.62227406]
[1755983618862,0.06,204.23,204.22,19.22227406]
[1755983619177,0.06,204.23,204.22,56.62227406]
[1755983620378,0.06,204.23,204.22,19.22227406]
[1755983620583,7.60890572,204.23,204.22,56.60227406]
[1755983622593,7.60890572,204.23,204.22,51.70559401]
[1755983623491,7.60890572,204.23,204.22,14.32559401]
[1755983623694,7.60890572,204.23,204.22,51.70559401]
[1755983624186,0.06,204.23,204.22,56.60227406]
[1755983624391,7.60890572,204.23,204.22,56.60227406]
[1755983624571,7.60890572,204.23,204.22,51.70559401]
[1755983624896,0.06,204.23,204.22,56.60227406]
[1755983625088,7.60890572,204.23,204.22,56.60227406]
[1755983625267,7.60890572,204.23,204.22,0.03]
[1755983625586,7.60890572,204.23,204.22,51.69559401]
[1755983626487,0.06,204.23,204.22,51.69559401]
[1755983626784,0.06,204.23,204.22,56.59227406]
[1755983632699,0.01323571,204.23,204.22,56.59227406]
[1755983633002,0.01323571,204.23,204.22,64.14117978]
[1755983638894,0.06,204.26,204.23,13.59559401]
[1755983639098,0.06,204.26,204.24,44.92890572]
[1755983639294,0.06,204.26,204.24,45.58890572]
[1755983639603,8.14890572,204.25,204.24,37.38]
[1755983639798,8.14890572,204.25,204.23,37.38]
[1755983639987,0.06,204.26,204.23,37.38]
[1755983639988,8.14890572,204.24,204.23,37.38]
[1755983640188,0.66,204.26,204.22,37.41]
[1755983640387,0.66,204.26,204.22,38.07]
[1755983640702,7.54890572,204.24,204.22,38.07]
[1755983640900,7.60890572,204.26,204.23,14.25559401]
[1755983641103,7.60890572,204.26,204.25,13.59559401]
[1755983641104,0.06,204.26,204.25,13.59559401]
[1755983641687,8.20890572,204.26,204.22,0.03]
[1755983642006,0.06,204.23,204.22,19.18216286]
[1755983642184,0.06,204.23,204.22,56.56216286]
[1755983657915,0.01311236,204.23,204.22,56.56216286]
[1755983663329,0.01311236,204.23,204.22,64.11106858]
[1755983663831,0.06,204.26,204.22,64.11106858]
[1755983664127,0.06,204.26,204.22,63.45106858]
[1755983664430,0.06,204.26,204.24,13.59559401]
[1755983664633,0.06,204.26,204.25,37.38]
[1755983664826,0.06,204.26,204.25,38.04]
[1755983665336,0.06,204.26,204.25,42.93596083]
[1755983668131,0.06,204.26,204.25,56.57155484]
[1755983669821,0.01320905,204.26,204.25,56.57155484]
[1755983671728,0.01320905,204.26,204.25,18.49155484]
[1755983671935,0.01320905,204.26,204.25,50.97559401]
[1755983672531,0.01320905,204.26,204.25,55.87155484]
[1755983672925,0.01320905,204.26,204.25,56.57155484]
[1755983677444,0.01320905,204.26,204.25,55.87155484]
[1755983679441,0.01320905,204.26,204.25,56.57155484]
[1755983680440,8.16211477,204.26,204.25,13.59559401]
[1755983680647,8.16211477,204.26,204.25,50.97559401]
[1755983682620,7.56211477,204.26,204.25,50.97559401]
[1755983683016,7.56211477,204.26,204.25,13.59559401]
[1755983683262,8.16211477,204.26,204.25,37.36]
[1755983685334,0.61320905,204.26,204.25,37.36]
[1755983685649,8.16211477,204.26,204.25,37.36]
[1755983686263,7.56211477,204.26,204.25,37.36]
[1755983690434,8.16211477,204.26,204.22,0.03]
[1755983690752,7.54890572,204.23,204.22,0.03]
[1755983692850,8.14890572,204.23,204.22,0.03]
[1755983693856,0.6,204.24,204.22,0.03]
[1755983694055,7.54890572,204.23,204.22,0.03]
[1755983696665,8.14890572,204.23,204.22,0.03]
[1755983698947,7.54890572,204.23,204.22,0.03]
[1755983700651,0.01320905,204.26,204.22,14.34559401]
[1755983700957,7.54890572,204.25,204.23,50.99559401]
[1755983701463,7.54890572,204.25,204.24,0.72]
[1755983704675,7.64890572,204.25,204.22,37.43]
[1755983704872,7.54890572,204.23,204.22,37.43]
[1755983705743,7.54890572,204.23,204.22,0.03]
[1755983706069,7.64890572,204.23,204.22,0.03]
[1755983706279,26.0,204.21,204.2,0.03]
[1755983706580,38.73014869,204.21,204.19,0.03]
[1755983706749,7.64890572,204.2,204.19,0.03]
[1755983708365,11.90482886,204.2,204.19,0.03]
[1755983710685,11.90482886,204.2,204.18,0.03]
[1755983710686,17.08631164,204.2,204.18,0.03]
[1755983710847,0.28432314,204.16,204.15,0.03]
[1755983711044,26.0,204.14,204.13,0.03]
[1755983711372,38.40482886,204.14,204.13,0.03]
[1755983711860,37.80482886,204.14,204.13,0.03]
[1755983712042,38.40482886,204.14,204.13,0.03]
[1755983712244,38.40482886,204.14,204.1,0.03]
[1755983712459,12.40482886,204.13,204.1,0.03]
[1755983712675,12.689152,204.13,204.1,0.03]
[1755983713060,37.46,204.17,204.1,0.03]
[1755983713061,22.24124085,204.23,204.12,0.92]
[1755983713267,80.5,204.25,204.12,0.92]
[1755983713268,0.6,204.22,204.13,0.72]
[1755983713465,11.80482886,204.15,204.13,0.72]
[1755983713807,11.80482886,204.17,204.13,0.72]
[1755983713948,11.80482886,204.17,204.14,4.898599]
[1755983714253,37.80482886,204.19,204.15,0.72]
[1755983714453,11.80482886,204.21,204.16,13.59559401]
[1755983714649,11.80482886,204.2,204.17,0.72]
[1755983715092,11.80482886,204.2,204.16,13.59559401]
[1755983715264,11.80482886,204.17,204.13,37.54]
[1755983715465,11.80482886,204.14,204.13,37.54]
[1755983715796,11.80482886,204.14,204.12,0.92]
[1755983715971,11.80482886,204.13,204.12,14.51559401]
[1755983718195,11.80482886,204.13,204.12,0.92]
[1755983720703,11.80482886,204.13,204.12,0.2]
[1755983721799,11.80482886,204.13,204.12,0.92]
[1755983725101,11.80482886,204.13,204.12,5.81907897]
[1755983727188,26.88432314,204.17,204.12,5.81907897]
[1755983727381,11.80482886,204.13,204.12,5.09907897]
[1755983727780,26.88432314,204.17,204.12,5.09907897]
[1755983728099,11.80482886,204.13,204.12,5.09907897]
[1755983728295,0.88432314,204.17,204.12,5.09907897]
[1755983728296,26.0,204.17,204.12,5.09907897]
[1755983728493,37.80482886,204.17,204.13,0.7]
[1755983728886,26.0,204.17,204.13,0.7]
[1755983730998,11.86482886,204.18,204.14,4.898599]
[1755983731383,11.86482886,204.18,204.15,0.7]
[1755983732692,0.06,204.18,204.16,0.7]
[1755983732904,0.06,204.18,204.17,4.89787921]
[1755983733588,0.06,204.18,204.17,5.59787921]
[1755983742723,0.06,204.18,204.17,43.09787921]
[1755983752202,11.86482886,204.18,204.16,4.89807756]
[1755983752415,11.80482886,204.17,204.16,42.37807756]
[1755983758872,11.80482886,204.17,204.16,43.06807756]
[1755983760966,11.80482886,204.17,204.16,37.48]
[1755983762530,11.80482886,204.17,204.15,0.69]
[1755983762849,11.80482886,204.16,204.14,37.44]
[1755983763036,11.80482886,204.15,204.14,37.44]
[1755983764318,11.80482886,204.15,204.14,38.13]
[1755983764520,11.80482886,204.15,204.14,37.44]
[1755983764737,11.80482886,204.15,204.14,38.13]
[1755983767868,11.80482886,204.15,204.14,43.028599]
[1755983768343,11.80482886,204.15,204.14,5.588599]
[1755983768549,11.80482886,204.15,204.14,43.028599]
[1755983773778,0.25,204.18,204.14,43.028599]
[1755983773779,11.80482886,204.17,204.14,43.028599]
[1755983774063,11.80482886,204.17,204.15,0.69]
[1755983774266,11.80482886,204.17,204.16,37.42]
[1755983774458,11.80482886,204.17,204.16,38.11]
[1755983778381,7.551857,204.17,204.16,38.11]
[1755983779642,7.551857,204.17,204.16,37.42]
[1755983779842,7.551857,204.17,204.15,37.42]
[1755983780152,7.551857,204.16,204.15,37.42]
[1755983780355,7.551857,204.16,204.15,43.00835904]
[1755983781056,7.551857,204.16,204.15,0.69]
[1755983781268,7.551857,204.16,204.15,37.42]
[1755983781772,7.551857,204.16,204.15,38.11]
[1755983782283,7.551857,204.16,204.15,37.42]
[1755983785356,0.06,204.18,204.15,37.42]
[1755983785564,7.551857,204.16,204.15,38.11]
[1755983788168,7.551857,204.16,204.15,0.69]
[1755983788368,8.151857,204.16,204.13,0.03]
[1755983788571,0.6,204.15,204.13,0.03]
[1755983788772,8.151857,204.14,204.13,0.03]
[1755983789447,7.551857,204.14,204.13,0.03]
[1755983790270,0.6,204.15,204.13,0.03]
[1755983790471,11.80794519,204.14,204.13,0.03]
[1755983790975,12.69226833,204.14,204.13,0.03]
[1755983792751,17.59086733,204.14,204.13,0.03]
[1755983796381,0.28432314,204.13,204.12,0.2]
[1755983796676,12.69226833,204.13,204.12,0.2]
[1755983797172,12.09226833,204.13,204.12,0.2]
[1755983805999,26.28432314,204.11,204.1,0.03]
[1755983806160,38.09226833,204.11,204.1,0.03]
[1755983806484,81.03158732,204.11,204.1,0.03]
[1755983806888,81.03158732,204.11,204.08,0.2]
[1755983807070,12.09226833,204.09,204.08,0.2]
[1755983810270,7.8466155,204.09,204.08,0.2]
[1755983810672,13.3464146,204.09,204.08,0.2]
[1755983812266,50.1864146,204.09,204.08,0.2]
[1755983814798,50.1864146,204.09,204.08,0.2]
[1755983820207,0.28432314,204.08,204.07,0.03]
[1755983820705,7.8466155,204.08,204.07,0.73]
[1755983821873,7.8466155,204.08,204.07,0.03]
[1755983822807,7.8466155,204.08,204.07,0.73]
[1755983823310,7.8466155,204.08,204.07,0.03]
[1755983823472,26.0,204.06,204.05,0.03]
[1755983823674,33.56229236,204.06,204.05,0.73]
[1755983824501,33.8466155,204.06,204.05,0.03]
[1755983825391,33.8466155,204.06,204.05,0.73]
[1755983828502,33.8466155,204.06,204.03,0.03]
[1755983828503,0.28432314,204.05,204.03,0.73]
[1755983828699,7.56229236,204.04,204.03,0.03]
[1755983828923,7.56229236,204.04,204.03,0.73]
[1755983832019,12.7476153,204.04,204.03,0.03]
[1755983832305,26.0,204.01,203.95,13.59559401]
[1755983832483,7.56229236,203.96,203.95,13.59559401]
[1755983833096,7.56229236,203.96,203.95,14.29559401]
[1755983834917,7.56229236,203.96,203.95,19.19875654]
[1755983835389,0.28432314,204.02,203.95,19.19875654]
[1755983835590,7.56229236,203.97,203.96,0.7]
[1755983836913,26.0,204.03,203.97,4.90268176]
[1755983837116,7.56229236,203.99,203.98,0.7]
[1755983837713,7.56229236,204.0,203.98,0.7]
[1755983839418,7.56229236,204.0,203.98,5.60225007]
[1755983839608,7.56229236,204.0,203.99,0.7]
[1755983840530,7.56229236,204.0,203.99,5.60220108]
[1755983842713,0.06,204.03,203.99,5.60220108]
[1755983842907,7.56229236,204.02,204.0,0.7]
[1755983843227,7.56229236,204.01,204.0,0.7]
[1755983844715,7.56229236,204.01,204.0,5.60196078]
[1755983846324,7.56229236,204.01,204.0,0.7]
[1755983848018,0.06,204.03,204.01,13.59559401]
[1755983848328,0.06,204.13,204.03,13.59559401]
[1755983848509,7.62229236,204.13,204.06,7.56229236]
[1755983848711,7.62229236,204.13,204.08,13.59559401]
[1755983849134,7.56229236,204.12,204.09,0.71]
[1755983849332,0.06,204.13,204.1,21.15788637]
[1755983849536,0.06,204.13,204.11,45.73229236]
[1755983849706,0.06,204.13,204.12,4.89907897]
[1755983849910,0.06,204.13,204.12,5.60907897]
[1755983851523,0.06,204.13,204.12,0.71]
[1755983851726,7.62229236,204.13,204.09,0.71]
[1755983852010,7.56229236,204.1,204.09,13.59559401]
[1755983852513,11.80876782,204.1,204.09,14.30559401]
[1755983853634,17.41833241,204.1,203.97,4.90268176]
[1755983853948,11.80876782,204.02,204.01,14.30559401]
[1755983854141,0.71,204.05,204.0,37.54]
[1755983854340,0.71,204.05,204.01,13.59559401]
[1755983854717,0.71,204.04,204.0,37.54]
[1755983855035,11.80876782,204.01,203.98,37.56]
[1755983855208,11.80876782,203.99,203.98,51.15559401]
[1755983855712,11.80876782,203.99,203.98,51.86559401]
[1755983855924,11.80876782,203.99,203.96,0.03]
[1755983856131,11.80876782,203.97,203.96,0.74]
[1755983857147,11.80876782,203.97,203.96,0.03]
[1755983857527,11.80876782,203.97,203.96,0.74]
[1755983858645,11.80876782,203.97,203.96,0.03]
[1755983866468,11.80876782,203.97,203.96,0.74]
[1755983867856,11.80876782,203.97,203.96,0.03]
[1755983868029,11.80876782,203.97,203.96,0.74]
[1755983868229,11.80876782,203.97,203.96,0.03]
[1755983868668,11.80876782,203.97,203.96,0.74]
[1755983868867,11.80876782,203.97,203.96,0.03]
[1755983870062,11.80876782,203.97,203.96,0.74]
[1755983871261,11.80876782,203.97,203.96,0.03]
[1755983871444,11.80876782,203.97,203.96,0.74]
[1755983873654,11.80876782,203.97,203.96,0.03]
[1755983873858,11.80876782,203.97,203.96,0.74]
[1755983874455,11.80876782,203.97,203.96,0.03]
[1755983874835,11.80876782,203.97,203.96,0.74]
[1755983880247,11.80876782,203.97,203.96,0.03]
[1755983880642,12.50876782,203.97,203.96,0.03]
[1755983885774,11.80876782,203.97,203.96,0.74]
[1755983886360,11.80876782,203.97,203.96,0.03]
[1755983886956,85.40006396,204.08,203.96,13.62559401]
[1755983887163,11.80876782,204.02,203.98,13.59559401]
[1755983887348,11.80876782,204.02,203.99,0.71]
[1755983888168,11.80876782,204.02,203.99,5.61205398]
[1755983888479,11.80876782,204.02,204.0,0.71]
[1755983888681,11.80876782,204.01,204.0,0.71]
[1755983890164,11.80876782,204.01,203.99,4.90205398]
[1755983890373,11.80876782,204.01,203.99,42.44205398]
[1755983890576,11.80876782,204.01,203.99,43.15205398]
[1755983891675,11.80876782,204.06,204.0,14.30559401]
[1755983891874,11.80876782,204.06,204.02,13.59559401]
[1755983892179,0.7,204.08,204.03,38.27]
[1755983892380,11.80876782,204.05,204.03,38.27]
[1755983892575,11.80876782,204.04,204.03,38.27]
[1755983892876,12.50876782,204.04,204.02,37.56]
[1755983893056,11.80876782,204.03,204.02,37.56]
[1755983894782,11.80876782,204.04,204.02,37.56]
[1755983894988,11.80876782,204.04,204.02,38.27]
[1755983895162,0.7,204.06,204.02,43.17143623]
[1755983895362,11.80876782,204.04,204.02,43.17143623]
[1755983895776,11.80876782,204.05,204.03,0.71]
[1755983896079,0.7,204.08,204.04,0.71]
[1755983896080,11.80876782,204.08,204.04,0.71]
[1755983896281,11.80876782,204.07,204.05,0.71]
[1755983896461,11.80876782,204.07,204.03,0.71]
[1755983896665,11.80876782,204.06,204.04,0.71]
[1755983897759,12.50876782,204.05,203.99,0.71]
[1755983897985,12.50876782,204.05,203.99,51.84559401]
[1755983897986,11.80876782,204.0,203.99,51.84559401]
[1755983898478,11.80876782,204.02,203.99,51.84559401]
[1755983898676,11.80876782,204.02,204.0,0.71]
[1755983900190,11.80876782,204.02,204.0,38.31]
[1755983900367,11.80876782,204.03,204.0,38.31]
[1755983901873,11.80876782,204.03,204.01,0.71]
[1755983902261,11.80876782,204.03,204.01,5.61167253]
[1755983902458,26.0,204.07,204.02,14.30559401]
[1755983902660,11.80876782,204.08,204.02,14.30559401]
[1755983902661,11.80876782,204.08,204.03,38.29]
[1755983902882,11.80876782,204.08,204.04,0.71]
[1755983903093,11.80876782,204.08,204.05,0.71]
[1755983903284,11.80876782,204.07,204.05,0.71]
[1755983904371,11.80876782,204.06,204.04,4.90077683]
[1755983905682,11.80876782,204.05,204.04,4.90077683]
[1755983905873,11.80876782,204.05,204.03,43.19118196]
[1755983907489,11.80876782,204.04,204.03,43.19118196]
[1755983908390,11.80876782,204.04,204.03,37.58]
[1755983909262,11.80876782,204.04,204.03,38.29]
[1755983910002,11.80876782,204.04,204.03,43.19124001]
[1755983910867,11.80876782,204.04,204.03,43.22124001]
[1755983911371,11.80876782,204.04,204.03,38.32]
[1755983912104,12.47876782,204.04,204.03,0.03]
[1755983916099,17.37976762,204.04,204.03,0.03]
[1755983916777,17.66409076,204.04,204.03,0.03]
[1755983916978,11.80876782,203.99,203.98,0.03]
[1755983918596,12.47876782,203.99,203.98,0.03]
[1755983919393,11.80876782,203.99,203.98,0.03]
[1755983922698,37.80876782,203.99,203.98,0.03]
[1755983926521,37.80876782,203.99,203.98,0.74]
[1755983927010,37.80876782,203.99,203.98,0.03]
[1755983940398,38.48876782,203.99,203.98,0.03]
[1755983940616,38.48876782,203.99,203.95,0.03]
[1755983940617,0.28432314,203.98,203.95,0.03]
[1755983940822,11.80876782,203.96,203.95,0.03]
[1755983941019,11.80876782,203.96,203.93,0.03]
[1755983941020,26.0,203.94,203.93,0.03]
[1755983941208,37.80876782,203.94,203.92,0.2]
[1755983941413,11.80876782,203.93,203.92,0.2]
[1755983951138,11.80876782,203.93,203.92,0.88]
[1755983953735,11.80876782,203.93,203.92,0.2]
[1755983953923,11.80876782,203.93,203.92,0.88]
[1755983954637,11.80876782,203.93,203.92,0.2]
[1755983960728,11.86876782,203.93,203.92,0.2]
[1755983966360,7.63402293,203.93,203.92,0.2]
[1755983967256,7.63402293,203.93,203.92,0.88]
[1755983967461,7.63402293,203.93,203.92,0.2]
[1755983968751,7.63402293,203.93,203.92,0.91]
[1755983969442,7.63402293,203.93,203.92,0.2]
[1755983974058,7.63402293,203.93,203.92,0.91]
[1755983975476,7.63402293,203.93,203.92,0.2]
[1755983982162,0.06,203.93,203.92,0.91]
[1755983982477,7.63402293,203.93,203.92,0.91]
[1755983984451,0.06,203.93,203.92,0.91]
[1755983984648,7.63402293,203.93,203.92,0.91]
[1755983988373,7.63402293,203.93,203.92,0.2]
[1755983997863,8.35402293,203.93,203.92,0.2]
[1755983998499,7.63402293,203.93,203.92,0.2]
[1755983999406,7.63402293,203.93,203.91,0.03]
[1755983999407,26.0,203.9,203.89,0.03]
[1755983999708,33.57402293,203.9,203.87,0.03]
[1755983999870,7.57402293,203.88,203.87,0.03]
[1755984000279,8.29402293,203.88,203.87,0.03]
[1755984000487,8.29402293,203.88,203.84,0.68]
[1755984000681,5.24796654,203.93,203.8,38.34329933]
[1755984000682,26.28432314,203.92,203.8,38.34329933]
[1755984000868,7.57402293,203.87,203.81,7.57402293]
[1755984001290,7.57402293,203.88,203.85,13.59559401]
[1755984001594,7.57402293,203.88,203.86,0.68]
[1755984002973,36.116988,203.93,203.87,13.59559401]
[1755984003174,7.57402293,203.9,203.88,0.68]
[1755984003494,7.57402293,203.91,203.88,5.58476432]
[1755984003678,7.57402293,203.91,203.89,0.68]
[1755984004881,10.116988,203.93,203.89,0.68]
[1755984005083,17.69101093,203.93,203.89,0.68]
[1755984005598,7.57402293,203.92,203.89,5.58460044]
[1755984005898,7.57402293,203.92,203.9,0.68]
[1755984008975,17.69101093,203.93,203.9,5.58427768]
[1755984009182,17.69101093,203.93,203.91,0.68]
[1755984011614,10.116988,203.93,203.91,5.58404992]
[1755984011814,10.116988,203.93,203.92,14.27559401]
[1755984014214,2.27154845,203.93,203.92,19.17947788]
[1755984025613,2.27154845,203.93,203.92,26.75350081]
[1755984025814,1e-08,203.93,203.92,27.03782395]
[1755984026335,1e-08,203.96,203.95,39.59559401]
[1755984026519,1e-08,203.96,203.95,84.93394008]
[1755984026716,1e-08,203.96,203.95,90.86387054]
[1755984028032,1e-08,203.96,203.95,95.76703307]
[1755984028331,1e-08,203.96,203.95,90.51710261]
[1755984068263,0.06,203.98,203.96,13.59559401]
[1755984068444,0.77,203.98,203.97,58.62961694]
[1755984069070,0.06,203.98,203.97,58.62961694]
[1755984070078,8.34402293,203.98,203.97,13.59559401]
[1755984070447,8.34402293,203.98,203.93,4.90358023]
[1755984070650,7.57402293,203.94,203.93,18.49917424]
[1755984070864,8.28402293,203.94,203.93,51.05559401]
[1755984073188,0.71,203.94,203.93,51.05559401]
[1755984073871,0.06,203.98,203.94,13.59559401]
[1755984074174,0.77,203.98,203.96,13.59559401]
[1755984074358,0.77,203.98,203.97,37.46]
[1755984076778,0.77,203.98,203.97,42.36268176]
[1755984076958,0.06,203.98,203.97,42.36268176]
[1755984077163,0.77,203.98,203.97,42.36268176]
[1755984077362,0.06,203.98,203.97,42.36268176]
[1755984087000,0.77,203.98,203.97,42.36268176]
[1755984087196,0.06,203.98,203.97,42.36268176]
[1755984100813,0.06,203.98,203.97,43.06268176]
[1755984111121,0.06,203.98,203.97,5.60268176]
[1755984111325,0.06,203.98,203.97,43.06268176]
[1755984112407,0.06,203.98,203.97,5.60268176]
[1755984112614,0.06,203.98,203.97,43.06268176]
[1755984113426,0.06,203.98,203.97,5.60268176]
[1755984113924,0.06,203.98,203.97,43.06268176]
[1755984114907,0.06,203.98,203.97,5.60268176]
[1755984115109,0.06,203.98,203.97,43.06268176]
[1755984116432,0.06,203.98,203.97,43.04268176]
[1755984117624,0.06,203.98,203.97,5.60268176]
[1755984117830,0.06,203.98,203.97,43.04268176]
[1755984119029,0.06,203.98,203.97,5.60268176]
[1755984119214,0.06,203.98,203.97,43.04268176]
[1755984120230,0.06,203.98,203.97,5.60268176]
[1755984120431,0.06,203.98,203.97,42.34268176]
[1755984121127,0.06,203.98,203.97,43.05268176]
[1755984121511,26.06,203.98,203.96,0.03]
[1755984121711,34.24402293,203.97,203.96,0.03]
[1755984125715,39.14670469,203.97,203.96,0.03]
[1755984128041,34.24402293,203.97,203.96,0.03]
[1755984128219,39.14670469,203.97,203.96,0.03]
[1755984128623,39.20670469,203.97,203.96,0.03]
[1755984141960,38.53670469,203.97,203.96,0.03]
[1755984144249,30.96268176,203.97,203.96,0.03]
[1755984144456,38.53670469,203.97,203.96,0.74]
[1755984144654,38.53670469,203.97,203.96,0.03]
[1755984145675,33.63402293,203.97,203.96,0.03]
[1755984147465,33.63402293,203.97,203.96,0.74]
[1755984148261,34.33402293,203.97,203.96,0.03]
[1755984148646,33.63402293,203.97,203.96,0.03]
[1755984149839,39.52102783,203.97,203.96,0.03]
[1755984150343,77.08102783,203.97,203.96,0.03]
[1755984158966,0.28432314,203.96,203.95,0.03]
[1755984159264,0.98432314,203.96,203.95,0.03]
[1755984159475,8.55834607,203.96,203.95,0.03]
[1755984161076,13.46126821,203.96,203.95,0.03]
[1755984168472,12.76126821,203.96,203.95,0.03]
[1755984168674,13.46126821,203.96,203.95,0.03]
[1755984171056,26.28432314,203.94,203.93,0.03]
[1755984171260,71.39834607,203.94,203.93,0.03]
[1755984174281,68.7277261,203.94,203.93,0.75]
[1755984174578,76.30174903,203.94,203.93,0.75]
[1755984176462,71.39834607,203.94,203.93,0.75]
[1755984176662,76.30174903,203.94,203.93,0.75]
[1755984182197,76.30174903,203.94,203.93,0.03]
[1755984184473,0.28432314,203.93,203.9,0.03]
[1755984184676,0.28432314,203.93,203.83,0.7]
[1755984184677,7.57402293,203.88,203.83,0.7]
[1755984184875,0.28432314,203.87,203.83,0.7]
[1755984185114,11.74580546,203.87,203.83,0.7]
[1755984185905,7.85834607,203.87,203.83,0.7]
[1755984186881,12.76343264,203.87,203.83,0.7]
[1755984187382,12.76343264,203.87,203.84,0.7]
[1755984188306,26.0,203.84,203.82,0.7]
[1755984188478,26.0,203.81,203.8,0.7]
[1755984188677,7.57402293,203.81,203.8,0.7]
[1755984194515,7.57402293,203.81,203.8,0.73]
[1755984196338,80.5,203.85,203.8,0.73]
[1755984196504,7.57402293,203.83,203.8,0.73]
[1755984197526,7.57402293,203.81,203.8,0.73]
[1755984197711,7.57402293,203.81,203.8,0.03]
[1755984198313,7.57402293,203.81,203.8,0.73]
[1755984200341,26.0,203.81,203.8,0.73]
[1755984201738,7.57402293,203.83,203.8,0.73]
[1755984203941,26.0,203.82,203.8,0.73]
[1755984204124,7.57402293,203.83,203.8,0.73]
[1755984204536,26.0,203.82,203.8,0.73]
[1755984204732,7.57402293,203.83,203.8,0.73]
[1755984212455,0.76,203.86,203.8,0.73]
[1755984212456,0.06,203.86,203.81,13.59559401]
[1755984212767,0.06,203.86,203.83,13.59559401]
[1755984213170,0.06,203.86,203.81,7.57402293]
[1755984213171,26.06,203.86,203.84,0.67]
[1755984214672,0.06,203.86,203.84,5.57577511]
[1755984214848,0.06,203.86,203.85,0.67]
[1755984218198,0.06,203.86,203.83,0.67]
[1755984218360,0.06,203.86,203.82,13.59559401]
[1755984218361,7.57402293,203.85,203.82,13.59559401]
[1755984218560,7.57402293,203.85,203.82,14.26559401]
[1755984218775,7.57402293,203.85,203.82,0.67]
[1755984218959,7.57402293,203.85,203.83,0.67]
[1755984219501,7.63402293,203.86,203.84,0.67]
[1755984220215,7.57402293,203.85,203.8,0.03]
[1755984220394,7.57402293,203.83,203.81,13.59559401]
[1755984220594,7.57402293,203.83,203.81,14.26559401]
[1755984221304,7.57402293,203.83,203.82,0.67]
[1755984221493,0.06,203.86,203.82,0.67]
[1755984221494,7.63402293,203.86,203.82,0.67]
[1755984222112,7.63402293,203.86,203.83,0.67]
[1755984222311,26.0,203.85,203.84,0.67]
[1755984222616,0.06,203.86,203.84,0.67]
[1755984223611,0.06,203.86,203.85,0.67]
[1755984223612,26.06,203.86,203.85,0.67]
[1755984224203,26.06,203.86,203.84,0.67]
[1755984224515,26.06,203.86,203.83,13.59559401]
[1755984224722,26.06,203.86,203.84,0.67]
[1755984225107,26.06,203.86,203.85,0.67]
[1755984225805,26.06,203.86,203.83,5.57596426]
[1755984226011,26.06,203.86,203.83,4.90596426]
[1755984226223,26.06,203.86,203.84,0.67]
[1755984226726,0.06,203.86,203.84,0.67]
[1755984227408,0.06,203.86,203.85,0.67]
[1755984228920,0.06,203.86,203.81,7.57402293]
[1755984229431,0.06,203.86,203.82,0.67]
[1755984230746,0.06,203.86,203.82,5.57624683]